Workbook

Sheet Cashflowoverzicht
B1: CashflowAfschrift
B3: Fiscaal jaar begint: | D3: (Voor) Opstarten | E3: =UPPER(TEXT(BegindatumBoekjaar,"mmm")) -> JAN | F3: =UPPER(TEXT(EOMONTH(BegindatumBoekjaar,1),"mmm")) -> FEB | G3: =UPPER(TEXT(EOMONTH(BegindatumBoekjaar,2),"mmm")) -> MRT | H3: =UPPER(TEXT(EOMONTH(BegindatumBoekjaar,3),"mmm")) -> APR | I3: =UPPER(TEXT(EOMONTH(BegindatumBoekjaar,4),"mmm")) -> MEI | J3: =UPPER(TEXT(EOMONTH(BegindatumBoekjaar,5),"mmm")) -> JUN | K3: =UPPER(TEXT(EOMONTH(BegindatumBoekjaar,6),"mmm")) -> JUL | L3: =UPPER(TEXT(EOMONTH(BegindatumBoekjaar,7),"mmm")) -> AUG | M3: =UPPER(TEXT(EOMONTH(BegindatumBoekjaar,8),"mmm")) -> SEP | N3: =UPPER(TEXT(EOMONTH(BegindatumBoekjaar,9),"mmm")) -> OKT | O3: =UPPER(TEXT(EOMONTH(BegindatumBoekjaar,10),"mmm")) -> NOV | P3: =UPPER(TEXT(EOMONTH(BegindatumBoekjaar,11),"mmm")) -> DEC | R3: Totaal
B4: 2012-01-05 | D4: GMT | E4: =BegindatumBoekjaar -> 2012-01-05 | F4: =EOMONTH(E4,0)+DAY(BegindatumBoekjaar) -> 2012-02-05 | G4: =EOMONTH(F4,0)+DAY(BegindatumBoekjaar) -> 2012-03-05 | H4: =EOMONTH(G4,0)+DAY(BegindatumBoekjaar) -> 2012-04-05 | I4: =EOMONTH(H4,0)+DAY(BegindatumBoekjaar) -> 2012-05-05 | J4: =EOMONTH(I4,0)+DAY(BegindatumBoekjaar) -> 2012-06-05 | K4: =EOMONTH(J4,0)+DAY(BegindatumBoekjaar) -> 2012-07-05 | L4: =EOMONTH(K4,0)+DAY(BegindatumBoekjaar) -> 2012-08-05 | M4: =EOMONTH(L4,0)+DAY(BegindatumBoekjaar) -> 2012-09-05 | N4: =EOMONTH(M4,0)+DAY(BegindatumBoekjaar) -> 2012-10-05 | O4: =EOMONTH(N4,0)+DAY(BegindatumBoekjaar) -> 2012-11-05 | P4: =EOMONTH(O4,0)+DAY(BegindatumBoekjaar) -> 2012-12-05 | R4: Item GMT
B6: Contanten in kas (begin van maand) | D6: 100 | E6: =D48 -> 100 | F6: =E48 -> -125 | G6: 45 | H6: -1 | I6: 224 | J6: 269 | K6: 269 | L6: 269 | M6: 269 | N6: 269 | O6: 269 | P6: 269 | R6: =P6 -> 269
B8: Kasontvangsten
B9: Contante verkoop | E9: 125 | F9: 120 | G9: 130 | H9: 100 | R9: =SUM(OntvangstbewijsContanten[[#This Row],[Periode 0]:[Periode 12]]) -> 475
B10: Geïnde rekeningen | H10: 75 | I10: 45 | R10: =SUM(OntvangstbewijsContanten[[#This Row],[Periode 0]:[Periode 12]]) -> 120
B11: Lening/andere contanten | E11: 50 | F11: 50 | G11: 50 | H11: 50 | R11: =SUM(OntvangstbewijsContanten[[#This Row],[Periode 0]:[Periode 12]]) -> 200
B12: Totaal | D12: =SUBTOTAL(109,OntvangstbewijsContanten[Periode 0]) -> 0 | E12: =SUBTOTAL(109,OntvangstbewijsContanten[Periode 1]) -> 175 | F12: =SUBTOTAL(109,OntvangstbewijsContanten[Periode 2]) -> 170 | G12: =SUBTOTAL(109,OntvangstbewijsContanten[Periode 3]) -> 180 | H12: =SUBTOTAL(109,OntvangstbewijsContanten[Periode 4]) -> 225 | I12: =SUBTOTAL(109,OntvangstbewijsContanten[Periode 5]) -> 45 | J12: =SUBTOTAL(109,OntvangstbewijsContanten[Periode 6]) -> 0 | K12: =SUBTOTAL(109,OntvangstbewijsContanten[Periode 7]) -> 0 | L12: =SUBTOTAL(109,OntvangstbewijsContanten[Periode 8]) -> 0 | M12: =SUBTOTAL(109,OntvangstbewijsContanten[Periode 9]) -> 0 | N12: =SUBTOTAL(109,OntvangstbewijsContanten[Periode 10]) -> 0 | O12: =SUBTOTAL(109,OntvangstbewijsContanten[Periode 11]) -> 0 | P12: =SUBTOTAL(109,OntvangstbewijsContanten[Periode 12]) -> 0 | R12: =SUBTOTAL(109,OntvangstbewijsContanten[Totaal]) -> 795
B13: Totale beschikbare contanten (voor uitbetaling) | D13: =D6+SUM(OntvangstbewijsContanten[Periode 0]) -> 100 | E13: =E6+SUM(OntvangstbewijsContanten[Periode 1]) -> 275 | F13: =F6+SUM(OntvangstbewijsContanten[Periode 2]) -> 45 | G13: =G6+SUM(OntvangstbewijsContanten[Periode 3]) -> 225 | H13: =H6+SUM(OntvangstbewijsContanten[Periode 4]) -> 224 | I13: =I6+SUM(OntvangstbewijsContanten[Periode 5]) -> 269 | J13: =J6+SUM(OntvangstbewijsContanten[Periode 6]) -> 269 | K13: =K6+SUM(OntvangstbewijsContanten[Periode 7]) -> 269 | L13: =L6+SUM(OntvangstbewijsContanten[Periode 8]) -> 269 | M13: =M6+SUM(OntvangstbewijsContanten[Periode 9]) -> 269 | N13: =N6+SUM(OntvangstbewijsContanten[Periode 10]) -> 269 | O13: =O6+SUM(OntvangstbewijsContanten[Periode 11]) -> 269 | P13: =P6+SUM(OntvangstbewijsContanten[Periode 12]) -> 269 | R13: =R6+SUM(OntvangstbewijsContanten[Totaal]) -> 1064
B15: Uitbetaalde contanten
B16: Aankopen (koopwaar) | E16: 400 | G16: 226 | R16: =SUM(BetaaldInContanten[[#This Row],[Periode 0]:[Periode 12]]) -> 626
B17: Aankopen (specificeren) | R17: =SUM(BetaaldInContanten[[#This Row],[Periode 0]:[Periode 12]]) -> 0
B18: Aankopen (specificeren) | R18: =SUM(BetaaldInContanten[[#This Row],[Periode 0]:[Periode 12]]) -> 0
B19: Brutolonen (exacte opnames) | R19: =SUM(BetaaldInContanten[[#This Row],[Periode 0]:[Periode 12]]) -> 0
B20: Loonkosten (belastingen enz.) | R20: =SUM(BetaaldInContanten[[#This Row],[Periode 0]:[Periode 12]]) -> 0
B21: Externe services | R21: =SUM(BetaaldInContanten[[#This Row],[Periode 0]:[Periode 12]]) -> 0
B22: Kantoorartikelen en dergelijke | R22: =SUM(BetaaldInContanten[[#This Row],[Periode 0]:[Periode 12]]) -> 0
B23: Reparaties en onderhoud | R23: =SUM(BetaaldInContanten[[#This Row],[Periode 0]:[Periode 12]]) -> 0
B24: Reclame | R24: =SUM(BetaaldInContanten[[#This Row],[Periode 0]:[Periode 12]]) -> 0
B25: Auto, bezorging en reizen | R25: =SUM(BetaaldInContanten[[#This Row],[Periode 0]:[Periode 12]]) -> 0
B26: Boekhouding en juridisch | R26: =SUM(BetaaldInContanten[[#This Row],[Periode 0]:[Periode 12]]) -> 0
B27: Huur | R27: =SUM(BetaaldInContanten[[#This Row],[Periode 0]:[Periode 12]]) -> 0
B28: Telefoon | R28: =SUM(BetaaldInContanten[[#This Row],[Periode 0]:[Periode 12]]) -> 0
B29: Gas, water, elektra | R29: =SUM(BetaaldInContanten[[#This Row],[Periode 0]:[Periode 12]]) -> 0
B30: Verzekeringen | R30: =SUM(BetaaldInContanten[[#This Row],[Periode 0]:[Periode 12]]) -> 0
B31: Belastingen (onroerend goed enz.) | R31: =SUM(BetaaldInContanten[[#This Row],[Periode 0]:[Periode 12]]) -> 0
B32: Rente | R32: =SUM(BetaaldInContanten[[#This Row],[Periode 0]:[Periode 12]]) -> 0
B33: Overige uitgaven (specificeren) | R33: =SUM(BetaaldInContanten[[#This Row],[Periode 0]:[Periode 12]]) -> 0
B34: Overige (specificeren) | R34: =SUM(BetaaldInContanten[[#This Row],[Periode 0]:[Periode 12]]) -> 0
B35: Overige (specificeren) | R35: =SUM(BetaaldInContanten[[#This Row],[Periode 0]:[Periode 12]]) -> 0
B36: Diversen | R36: =SUM(BetaaldInContanten[[#This Row],[Periode 0]:[Periode 12]]) -> 0
B37: Totaal | D37: =SUBTOTAL(109,BetaaldInContanten[Periode 0]) -> 0 | E37: =SUBTOTAL(109,BetaaldInContanten[Periode 1]) -> 400 | F37: =SUBTOTAL(109,BetaaldInContanten[Periode 2]) -> 0 | G37: =SUBTOTAL(109,BetaaldInContanten[Periode 3]) -> 226 | H37: =SUBTOTAL(109,BetaaldInContanten[Periode 4]) -> 0 | I37: =SUBTOTAL(109,BetaaldInContanten[Periode 5]) -> 0 | J37: =SUBTOTAL(109,BetaaldInContanten[Periode 6]) -> 0 | K37: =SUBTOTAL(109,BetaaldInContanten[Periode 7]) -> 0 | L37: =SUBTOTAL(109,BetaaldInContanten[Periode 8]) -> 0 | M37: =SUBTOTAL(109,BetaaldInContanten[Periode 9]) -> 0 | N37: =SUBTOTAL(109,BetaaldInContanten[Periode 10]) -> 0 | O37: =SUBTOTAL(109,BetaaldInContanten[Periode 11]) -> 0 | P37: =SUBTOTAL(109,BetaaldInContanten[Periode 12]) -> 0 | R37: =SUBTOTAL(109,BetaaldInContanten[Totaal]) -> 626
B39: Uitbetaalde contanten (geen W&V)
B40: Betaling hoofdsom lening | R40: =SUM(BetaaldInContanten2[[#This Row],[Periode 0]:[Periode 12]]) -> 0
B41: Kapitaalaankopen (specificeren) | R41: =SUM(BetaaldInContanten2[[#This Row],[Periode 0]:[Periode 12]]) -> 0
B42: Overige opstartkosten | R42: =SUM(BetaaldInContanten2[[#This Row],[Periode 0]:[Periode 12]]) -> 0
B43: Reserve en/of borg | R43: =SUM(BetaaldInContanten2[[#This Row],[Periode 0]:[Periode 12]]) -> 0
B44: Opname van eigenaar | R44: =SUM(BetaaldInContanten2[[#This Row],[Periode 0]:[Periode 12]]) -> 0
B45: Totaal | D45: =SUBTOTAL(109,BetaaldInContanten2[Periode 0]) -> 0 | E45: =SUBTOTAL(109,BetaaldInContanten2[Periode 1]) -> 0 | F45: =SUBTOTAL(109,BetaaldInContanten2[Periode 2]) -> 0 | G45: =SUBTOTAL(109,BetaaldInContanten2[Periode 3]) -> 0 | H45: =SUBTOTAL(109,BetaaldInContanten2[Periode 4]) -> 0 | I45: =SUBTOTAL(109,BetaaldInContanten2[Periode 5]) -> 0 | J45: =SUBTOTAL(109,BetaaldInContanten2[Periode 6]) -> 0 | K45: =SUBTOTAL(109,BetaaldInContanten2[Periode 7]) -> 0 | L45: =SUBTOTAL(109,BetaaldInContanten2[Periode 8]) -> 0 | M45: =SUBTOTAL(109,BetaaldInContanten2[Periode 9]) -> 0 | N45: =SUBTOTAL(109,BetaaldInContanten2[Periode 10]) -> 0 | O45: =SUBTOTAL(109,BetaaldInContanten2[Periode 11]) -> 0 | P45: =SUBTOTAL(109,BetaaldInContanten2[Periode 12]) -> 0 | R45: =SUBTOTAL(109,BetaaldInContanten2[Totaal]) -> 0
B46: Totaal uitbetaalde contanten | D46: =SUM(BetaaldInContanten[Periode 0],BetaaldInContanten2[Periode 0]) -> 0 | E46: =SUM(BetaaldInContanten[Periode 1],BetaaldInContanten2[Periode 1]) -> 400 | F46: =SUM(BetaaldInContanten[Periode 2],BetaaldInContanten2[Periode 2]) -> 0 | G46: =SUM(BetaaldInContanten[Periode 3],BetaaldInContanten2[Periode 3]) -> 226 | H46: =SUM(BetaaldInContanten[Periode 4],BetaaldInContanten2[Periode 4]) -> 0 | I46: =SUM(BetaaldInContanten[Periode 5],BetaaldInContanten2[Periode 5]) -> 0 | J46: =SUM(BetaaldInContanten[Periode 6],BetaaldInContanten2[Periode 6]) -> 0 | K46: =SUM(BetaaldInContanten[Periode 7],BetaaldInContanten2[Periode 7]) -> 0 | L46: =SUM(BetaaldInContanten[Periode 8],BetaaldInContanten2[Periode 8]) -> 0 | M46: =SUM(BetaaldInContanten[Periode 9],BetaaldInContanten2[Periode 9]) -> 0 | N46: =SUM(BetaaldInContanten[Periode 10],BetaaldInContanten2[Periode 10]) -> 0 | O46: =SUM(BetaaldInContanten[Periode 11],BetaaldInContanten2[Periode 11]) -> 0 | P46: =SUM(BetaaldInContanten[Periode 12],BetaaldInContanten2[Periode 12]) -> 0 | R46: =SUM(BetaaldInContanten[Totaal],BetaaldInContanten2[Totaal]) -> 626
B48: Cashpositie (einde van maand) | D48: =D13-D46 -> 100 | E48: -125 | F48: 45 | G48: -1 | H48: 224 | I48: 269 | J48: 269 | K48: 269 | L48: 269 | M48: 269 | N48: 269 | O48: 269 | P48: 269 | R48: =R13-R46 -> 438
